lending/lending_fUSD_20240112
["ID","MTS","AMOUNT","RATE_DAILY","PERIOD"]
[311318357,1705061463373,-506.02100949,0.0002287,2]
[311318358,1705061463382,-500.0,0.0002287,2]
[311318359,1705061463391,-233.44887815,0.0002287,2]
[311318360,1705061463401,-500.0,0.0002287,2]
[311318361,1705061463410,-500.0,0.0002287,2]
[311318362,1705061463419,-500.0,0.0002287,2]
[311318363,1705061463430,-500.0,0.0002287,2]
[311318364,1705061463441,-500.0,0.0002287,2]
[311318365,1705061463451,-511.59676288,0.0002287,2]
[311318366,1705061463460,-500.0,0.0002287,2]
[311318367,1705061463469,-500.0,0.0002287,2]
[311318368,1705061463479,-500.0,0.0002287,2]
[311318369,1705061463488,-509.1885928,0.0002287,2]
[311318370,1705061463498,-500.0,0.0002287,2]
[311318371,1705061463508,-500.0,0.0002287,2]
[311318372,1705061463518,-250.0,0.0002287,2]
[311318373,1705061463529,-500.0,0.0002287,2]
[311318374,1705061463538,-500.0,0.0002287,2]
[311318375,1705061463547,-500.0,0.0002287,2]
[311318376,1705061463556,-239.8561003,0.0002287,2]
[311318377,1705061463566,-500.0,0.0002287,2]
[311318378,1705061463576,-500.0,0.0002287,2]
[311318379,1705061463585,-500.0,0.0002287,2]
[311318380,1705061463594,-500.0,0.0002287,2]
[311318381,1705061463604,-500.0,0.0002287,2]
[311318382,1705061463614,-500.0,0.0002287,2]
[311318383,1705061463623,-513.62505187,0.0002287,2]
[311318384,1705061463632,-500.0,0.0002287,2]
[311318385,1705061463642,-500.0,0.0002287,2]
[311318386,1705061463651,-500.0,0.0002287,2]
[311318387,1705061463660,-517.68262162,0.0002287,2]
[311318388,1705061463669,-500.0,0.0002287,2]
[311318389,1705061463679,-500.0,0.0002287,2]
[311318390,1705061463688,-500.0,0.0002287,2]
[311318391,1705061463697,-500.0,0.0002287,2]
[311318392,1705061463707,-500.0,0.0002287,2]
[311318393,1705061463716,-500.0,0.0002287,2]
[311318394,1705061463725,-500.0,0.0002287,2]
[311318395,1705061463734,-500.0,0.0002287,2]
[311318396,1705061463744,-500.0,0.0002287,2]
[311318397,1705061463753,-500.0,0.0002287,2]
[311318398,1705061463762,-500.0,0.0002287,2]
[311318399,1705061463772,-500.0,0.0002287,2]
[311318400,1705061463783,-500.0,0.0002287,2]
[311318401,1705061463792,-500.0,0.0002287,2]
[311318402,1705061463801,-500.0,0.0002287,2]
[311318403,1705061463810,-500.0,0.0002287,2]
[311318404,1705061463819,-500.0,0.0002287,2]
[311318405,1705061463829,-500.0,0.0002287,2]
[311318406,1705061463838,-500.0,0.0002287,2]
[311318407,1705061463848,-500.0,0.0002287,2]
[311318408,1705061463858,-500.0,0.0002287,2]
[311318409,1705061463870,-500.0,0.0002287,2]
[311318410,1705061463879,-500.0,0.0002287,2]
[311318411,1705061463888,-500.0,0.0002287,2]
[311318412,1705061463898,-500.0,0.0002287,2]
[311318413,1705061463907,-500.0,0.0002287,2]
[311318414,1705061463915,-500.0,0.0002287,2]
[311318415,1705061463925,-500.0,0.0002287,2]
[311318416,1705061463934,-500.0,0.0002287,2]
[311318417,1705061463945,-500.0,0.0002287,2]
[311318418,1705061463954,-500.0,0.0002287,2]
[311318419,1705061463963,-500.0,0.0002287,2]
[311318420,1705061463972,-500.0,0.0002287,2]
[311318421,1705061463983,-500.0,0.0002287,2]
[311318422,1705061463992,-500.0,0.0002287,2]
[311318423,1705061464002,-500.0,0.0002287,2]
[311318424,1705061464011,-1183.34,0.0002287,2]
[311318425,1705061464020,-500.0,0.0002287,2]
[311318426,1705061464031,-500.0,0.0002287,2]
[311318427,1705061464041,-500.0,0.0002287,2]
[311318428,1705061464050,-500.0,0.0002287,2]
[311318429,1705061464060,-500.0,0.0002287,2]
[311318430,1705061464069,-500.0,0.0002287,2]
[311318431,1705061464078,-500.0,0.0002287,2]
[311318432,1705061464088,-500.0,0.0002287,2]
[311318433,1705061464097,-500.0,0.0002287,2]
[311318434,1705061464106,-500.0,0.0002287,2]
[311318435,1705061464115,-500.0,0.0002287,2]
[311318436,1705061464124,-500.0,0.0002287,2]
[311318437,1705061464133,-500.0,0.0002287,2]
[311318438,1705061464143,-183.87019123,0.0002287,2]
[311318439,1705061464152,-507.28022189,0.0002287,2]
[311318440,1705061464324,-500.0,0.0002287,2]
[311318441,1705061464347,-500.0,0.0002287,2]
[311318442,1705061464357,-514.62,0.0002287,2]
[311318443,1705061464366,-500.0,0.0002287,2]
[311318444,1705061464376,-514.62,0.0002287,2]
[311318445,1705061464385,-506.7613662,0.0002287,2]
[311318446,1705061464395,-511.48596216,0.0002287,2]
[311318447,1705061464406,-500.0,0.0002287,2]
[311318448,1705061464415,-174.1176155,0.0002287,2]
[311318449,1705061464426,-500.0,0.0002287,2]
[311318450,1705061464435,-500.0,0.0002287,2]
[311318451,1705061464445,-500.0,0.0002287,2]
[311318452,1705061464454,-506.79889879,0.0002287,2]
[311318453,1705061464464,-500.0,0.0002287,2]
[311318454,1705061464474,-500.0,0.0002287,2]
[311318455,1705061464483,-500.0,0.0002287,2]
[311318456,1705061464492,-500.0,0.0002287,2]
[311318457,1705061464501,-500.0,0.0002287,2]
[311318458,1705061464511,-500.0,0.0002287,2]
[311318459,1705061464521,-500.0,0.0002287,2]
[311318460,1705061464531,-500.0,0.0002287,2]
[311318461,1705061464540,-500.0,0.0002287,2]
[311318462,1705061464550,-500.0,0.0002287,2]
[311318463,1705061464559,-500.0,0.0002287,2]
[311318464,1705061464568,-433.4589671,0.0002287,2]
[311318465,1705061464578,-500.0,0.0002287,2]
[311318466,1705061464587,-180.49371243,0.0002287,2]
[311318467,1705061464597,-500.0,0.0002287,2]
[311318468,1705061464606,-500.0,0.0002287,2]
[311318469,1705061464616,-506.51368526,0.0002287,2]
[311318470,1705061464626,-500.0,0.0002287,2]
[311318471,1705061464636,-500.0,0.0002287,2]
[311318472,1705061464645,-500.0,0.0002287,2]
[311318473,1705061464654,-500.0,0.0002287,2]
[311318474,1705061464663,-500.0,0.0002287,2]
[311318475,1705061464672,-500.0,0.0002287,2]
[311318476,1705061464682,-500.0,0.0002287,2]
[311318477,1705061464693,-500.0,0.0002287,2]
[311318478,1705061464702,-500.0,0.0002287,2]
[311318479,1705061464712,-500.0,0.0002287,2]
[311318480,1705061464721,-500.0,0.0002287,2]
[311318481,1705061464731,-500.0,0.0002287,2]
[311318482,1705061464740,-500.0,0.0002287,2]
[311318483,1705061464749,-500.0,0.0002287,2]
[311318484,1705061464759,-500.0,0.0002287,2]
[311318485,1705061464769,-506.12887834,0.0002287,2]
[311318486,1705061464781,-500.0,0.0002287,2]
[311318487,1705061464790,-500.0,0.0002287,2]
[311318488,1705061464799,-508.75332564,0.0002287,2]
[311318489,1705061464809,-518.65601879,0.0002287,2]
[311318490,1705061464818,-500.0,0.0002287,2]
[311318491,1705061464827,-1000.0,0.0002287,2]
[311318492,1705061464837,-500.0,0.0002287,2]
[311318493,1705061464846,-500.0,0.0002287,2]
[311318494,1705061464856,-500.0,0.0002287,2]
[311318495,1705061464869,-500.0,0.0002287,2]
[311318496,1705061464878,-500.0,0.0002287,2]
[311318497,1705061464888,-500.0,0.0002287,2]
[311318498,1705061464898,-500.0,0.0002287,2]
[311318499,1705061464907,-500.0,0.0002287,2]
[311318500,1705061464917,-500.0,0.0002287,2]
[311318501,1705061464926,-500.0,0.0002287,2]
[311318502,1705061464935,-500.0,0.0002287,2]
[311318503,1705061464945,-332.38622518,0.0002287,2]
[311318504,1705061464954,-500.0,0.0002287,2]
[311318505,1705061464963,-500.0,0.0002287,2]
[311318506,1705061464973,-500.0,0.0002287,2]
[311318507,1705061464982,-500.0,0.0002287,2]
[311318508,1705061464994,-500.0,0.0002287,2]
[311318509,1705061465004,-500.0,0.0002287,2]
[311318510,1705061465015,-500.0,0.0002287,2]
[311318511,1705061465025,-500.0,0.0002287,2]
[311318512,1705061465036,-500.0,0.0002287,2]
[311318513,1705061465046,-500.0,0.0002287,2]
[311318514,1705061465056,-500.0,0.0002287,2]
[311318515,1705061465065,-500.0,0.0002287,2]
[311318516,1705061465078,-500.0,0.0002287,2]
[311318517,1705061465088,-500.0,0.0002287,2]
[311318518,1705061465098,-500.0,0.0002287,2]
[311318519,1705061465107,-500.0,0.0002287,2]
[311318520,1705061465117,-500.0,0.0002287,2]
[311318521,1705061465127,-500.0,0.0002287,2]
[311318522,1705061465137,-500.0,0.0002287,2]
[311318523,1705061465147,-500.0,0.0002287,2]
[311318524,1705061465158,-500.0,0.0002287,2]
[311318525,1705061465169,-257.29140093,0.0002287,2]
[311318526,1705061465180,-500.0,0.0002287,2]
[311318527,1705061465190,-500.0,0.0002287,2]
[311318528,1705061465200,-500.0,0.0002287,2]
[311318529,1705061465209,-500.0,0.0002287,2]
[311318530,1705061465219,-500.0,0.0002287,2]
[311318531,1705061465229,-500.0,0.0002287,2]
[311318532,1705061465239,-500.0,0.0002287,2]
[311318533,1705061465249,-500.0,0.0002287,2]
[311318534,1705061465260,-500.0,0.0002287,2]
[311318535,1705061465270,-500.0,0.0002287,2]
[311318536,1705061465281,-507.37702251,0.0002287,2]
[311318537,1705061465291,-500.0,0.0002287,2]
[311318538,1705061465301,-500.0,0.0002287,2]
[311318539,1705061465311,-500.0,0.0002287,2]
[311318540,1705061465320,-500.0,0.0002287,2]
[311318541,1705061465330,-500.0,0.0002287,2]
[311318542,1705061465340,-500.0,0.0002287,2]
[311318543,1705061465350,-500.0,0.0002287,2]
[311318544,1705061465359,-337.81445296,0.0002287,2]
[311318545,1705061465369,-500.0,0.0002287,2]
[311318546,1705061465378,-500.0,0.0002287,2]
[311318547,1705061465388,-500.0,0.0002287,2]
[311318548,1705061465397,-500.0,0.0002287,2]
[311318549,1705061465407,-500.0,0.0002287,2]
[311318550,1705061465417,-500.0,0.0002287,2]
[311318551,1705061465427,-500.0,0.0002287,2]
[311318552,1705061465437,-640.46272021,0.0002287,2]
[311318553,1705061465448,-500.0,0.0002287,2]
[311318554,1705061465458,-500.0,0.0002287,2]
[311318555,1705061465469,-500.0,0.0002287,2]
[311318556,1705061465480,-500.0,0.0002287,2]
[311318557,1705061465490,-500.0,0.0002287,2]
[311318558,1705061465500,-500.0,0.0002287,2]
[311318559,1705061465510,-500.0,0.0002287,2]
[311318560,1705061465520,-500.0,0.0002287,2]
[311318561,1705061465533,-500.0,0.0002287,2]
[311318562,1705061465544,-500.0,0.0002287,2]
[311318563,1705061465555,-500.0,0.0002287,2]
[311318564,1705061465565,-500.0,0.0002287,2]
[311318565,1705061465575,-500.0,0.0002287,2]
[311318566,1705061465586,-500.0,0.0002287,2]
[311318567,1705061465596,-500.0,0.0002287,2]
[311318568,1705061465606,-500.0,0.0002287,2]
[311318569,1705061465615,-500.0,0.0002287,2]
[311318570,1705061465626,-1000.0,0.0002287,2]
[311318571,1705061465636,-500.0,0.0002287,2]
[311318572,1705061465647,-500.0,0.0002287,2]
[311318573,1705061465658,-500.0,0.0002287,2]
[311318574,1705061465668,-500.0,0.0002287,2]
[311318575,1705061465678,-500.0,0.0002287,2]
[311318576,1705061465687,-500.0,0.0002287,2]
[311318577,1705061465697,-500.0,0.0002287,2]
[311318578,1705061465707,-500.0,0.0002287,2]
[311318579,1705061465716,-500.0,0.0002287,2]
[311318580,1705061465725,-500.0,0.0002287,2]
[311318581,1705061465735,-500.0,0.0002287,2]
[311318582,1705061465744,-500.0,0.0002287,2]
[311318583,1705061465754,-500.0,0.0002287,2]
[311318584,1705061465763,-500.0,0.0002287,2]
[311318585,1705061465773,-500.0,0.0002287,2]
[311318586,1705061465786,-500.0,0.0002287,2]
[311318587,1705061465796,-500.0,0.0002287,2]
[311318588,1705061465805,-300.0,0.0002287,2]
[311318589,1705061465815,-500.0,0.0002287,2]
[311318590,1705061465825,-179.59423184,0.0002287,2]
[311318591,1705061465835,-500.0,0.0002287,2]
[311318592,1705061465845,-500.0,0.0002287,2]
[311318593,1705061465855,-500.0,0.0002287,2]
[311318594,1705061465869,-500.0,0.0002287,2]
[311318595,1705061465879,-500.0,0.0002287,2]
[311318596,1705061465889,-500.0,0.0002287,2]
[311318597,1705061465899,-500.0,0.0002287,2]
[311318598,1705061465909,-500.0,0.0002287,2]
[311318599,1705061465918,-500.0,0.0002287,2]
[311318600,1705061465928,-500.0,0.0002287,2]
[311318601,1705061465938,-500.0,0.0002287,2]
[311318602,1705061465949,-255.78981471,0.0002287,2]
[311318603,1705061465959,-500.0,0.0002287,2]
[311318604,1705061465969,-500.0,0.0002287,2]
[311318605,1705061465980,-500.0,0.0002287,2]
[311318606,1705061465989,-500.0,0.0002287,2]
[311318607,1705061465999,-500.0,0.0002287,2]
[311318608,1705061466009,-500.0,0.0002287,2]
[311318609,1705061466018,-500.0,0.0002287,2]
[311318610,1705061466029,-500.0,0.0002287,2]
[311318611,1705061466039,-500.0,0.0002287,2]
[311318612,1705061466049,-500.0,0.0002287,2]
[311318613,1705061466058,-500.0,0.0002287,2]
[311318614,1705061466068,-500.0,0.0002287,2]
[311318615,1705061466078,-500.0,0.0002287,2]
[311318616,1705061466088,-500.0,0.0002287,2]
[311318617,1705061466098,-500.0,0.0002287,2]
[311318618,1705061466107,-500.0,0.0002287,2]
[311318619,1705061466118,-500.0,0.0002287,2]
[311318620,1705061466128,-500.0,0.0002287,2]
[311318621,1705061466138,-508.22190087,0.0002287,2]
[311318622,1705061466148,-500.0,0.0002287,2]
[311318623,1705061466157,-500.0,0.0002287,2]
[311318624,1705061466167,-500.0,0.0002287,2]
[311318625,1705061466177,-500.0,0.0002287,2]
[311318626,1705061466187,-500.0,0.0002287,2]
[311318627,1705061466197,-500.0,0.0002287,2]
[311318628,1705061466207,-500.0,0.0002287,2]
[311318629,1705061466217,-500.0,0.0002287,2]
[311318630,1705061466226,-500.0,0.0002287,2]
[311318631,1705061466236,-500.0,0.0002287,2]
[311318632,1705061466245,-500.0,0.0002287,2]
[311318633,1705061466256,-500.0,0.0002287,2]
[311318634,1705061466266,-500.0,0.0002287,2]
[311318635,1705061466276,-474.85849868,0.0002287,2]
[311318636,1705061466287,-500.0,0.0002287,2]
[311318637,1705061466297,-500.0,0.0002287,2]
[311318638,1705061466306,-500.0,0.0002287,2]
[311318639,1705061466315,-500.0,0.0002287,2]
[311318640,1705061466325,-500.0,0.0002287,2]
[311318641,1705061466334,-500.0,0.0002287,2]
[311318642,1705061466344,-500.0,0.0002287,2]
[311318643,1705061466354,-500.0,0.0002287,2]
[311318644,1705061466364,-500.0,0.0002287,2]
[311318645,1705061466374,-594.41,0.0002287,2]
[311318646,1705061466383,-594.41,0.0002287,2]
[311318647,1705061466393,-500.0,0.0002287,2]
[311318648,1705061466402,-500.0,0.0002287,2]
[311318649,1705061466412,-216.4250711,0.0002287,2]
[311318650,1705061466421,-500.0,0.0002287,2]
[311318651,1705061466430,-500.0,0.0002287,2]
[311318652,1705061466440,-500.0,0.0002287,2]
[311318653,1705061466450,-507.61289215,0.0002287,2]
[311318654,1705061466460,-500.0,0.0002287,2]
[311318655,1705061466469,-500.0,0.0002287,2]
[311318656,1705061466480,-500.0,0.0002287,2]
[311318657,1705061466489,-500.0,0.0002287,2]
[311318658,1705061466499,-364.09126511,0.0002287,2]
[311318659,1705061466509,-500.0,0.0002287,2]
[311318660,1705061466519,-500.0,0.0002287,2]
[311318661,1705061466530,-500.0,0.0002287,2]
[311318662,1705061466539,-498.74228184,0.0002287,2]
[311318663,1705061466549,-500.0,0.0002287,2]
[311318664,1705061466558,-500.0,0.0002287,2]
[311318665,1705061466569,-500.0,0.0002287,2]
[311318666,1705061466578,-420.54813504,0.0002287,2]
[311318667,1705061466588,-500.0,0.0002287,2]
[311318668,1705061466598,-500.0,0.0002287,2]
[311318669,1705061466607,-500.0,0.0002287,2]
[311318670,1705061466617,-500.0,0.0002287,2]
[311318671,1705061466626,-500.0,0.0002287,2]
[311318672,1705061466635,-500.0,0.0002287,2]
[311318673,1705061466645,-500.0,0.0002287,2]
[311318674,1705061466654,-500.0,0.0002287,2]
[311318675,1705061466664,-503.70527414,0.0002287,2]
[311318676,1705061466673,-191.79534718,0.0002287,2]
[311318677,1705061466682,-500.0,0.0002287,2]
[311318678,1705061466691,-500.0,0.0002287,2]
[311318679,1705061466700,-500.0,0.0002287,2]
[311318680,1705061466710,-500.0,0.0002287,2]
[311318681,1705061466719,-500.0,0.0002287,2]
[311318682,1705061466881,-500.0,0.0002287,2]
[311318683,1705061466891,-500.0,0.0002287,2]
[311318684,1705061466901,-500.0,0.0002287,2]
[311318685,1705061466910,-500.0,0.0002287,2]
[311318686,1705061466920,-500.0,0.0002287,2]
[311318687,1705061466930,-500.0,0.0002287,2]
[311318688,1705061466939,-500.0,0.0002287,2]
[311318689,1705061466948,-500.0,0.0002287,2]
[311318690,1705061466958,-500.0,0.0002287,2]
[311318691,1705061466967,-500.0,0.0002287,2]
[311318692,1705061466977,-500.0,0.0002287,2]
[311318693,1705061466986,-500.0,0.0002287,2]
[311318694,1705061466996,-500.0,0.0002287,2]
[311318695,1705061467005,-500.0,0.0002287,2]
[311318696,1705061467014,-505.19664397,0.0002287,2]
[311318697,1705061467024,-500.0,0.0002287,2]
[311318698,1705061467036,-500.0,0.0002287,2]
[311318699,1705061467045,-500.0,0.0002287,2]
[311318700,1705061467054,-500.0,0.0002287,2]
[311318701,1705061467064,-500.0,0.0002287,2]
[311318702,1705061467074,-500.0,0.0002287,2]
[311318703,1705061467083,-500.0,0.0002287,2]
[311318704,1705061467092,-500.0,0.0002287,2]
[311318705,1705061467102,-500.0,0.0002287,2]
[311318706,1705061467112,-500.0,0.0002287,2]
[311318707,1705061467121,-500.0,0.0002287,2]
[311318708,1705061467131,-500.0,0.0002287,2]
[311318709,1705061467140,-500.0,0.0002287,2]
[311318710,1705061467150,-500.0,0.0002287,2]
[311318711,1705061467159,-500.0,0.0002287,2]
[311318712,1705061467168,-500.0,0.0002287,2]
[311318713,1705061467177,-500.0,0.0002287,2]
[311318714,1705061467187,-500.0,0.0002287,2]
[311318715,1705061467197,-58000.0,0.00022891,2]
[311318716,1705061467206,-1000.0,0.00022899,2]
[311318717,1705061467215,-150.67,0.00022899,2]
[311318718,1705061467225,-500.0,0.00022899,2]
[311318719,1705061467234,-500.0,0.00022899,2]
[311318720,1705061467243,-500.0,0.00022899,2]
[311318721,1705061467253,-153.02,0.00022899,2]
[311318722,1705061467262,-58000.0,0.000229,2]
[311318723,1705061467272,-220.14490461,0.000229,2]
[311318724,1705061467286,-155.35843188,0.000229,6]
[311318725,1705061467295,-2071.18329444,0.000229,2]
[311318726,1705061467305,-229.99212303,0.000229,2]
[311318727,1705061467314,-201.04231172,0.000229,2]
[311318728,1705061467323,-325.54174968,0.00022911,2]
[311318729,1705061467333,-14720.0,0.00022986,2]
[311318730,1705061467342,-514.62,0.00022996,2]
[311318731,1705061467351,-500.0,0.00022996,2]
[311318732,1705061467361,-594.41,0.00022996,2]
[311318733,1705061467371,-196.155894,0.00022997,2]
[311318734,1705061467380,-3001.53867376,0.00022997,2]
[311318735,1705061467389,-761.78064637,0.00022998,2]
[311318736,1705061467399,-2523.89576785,0.00022998,2]
[311318737,1705061467409,-429.64833181,0.00022998,2]
[311318738,1705061467418,-10486.82282849,0.00022998,2]
[311318739,1705061467427,-155.93966071,0.00022998,2]
[311318740,1705061467437,-269.28033484,0.00022998,2]
[311318741,1705061467446,-222.94994172,0.00022998,2]
[311318742,1705061467456,-385.02931366,0.00022998,2]
[311318743,1705061467465,-208.19890203,0.00022998,2]
[311318744,1705061467475,-161.44432636,0.00022998,2]
[311318745,1705061467486,-474.64500844,0.00022998,2]
[311318746,1705061467495,-245.10987285,0.00022998,2]
[311318747,1705061467505,-586.81175476,0.00022998,2]
[311318748,1705061467514,-245.98964121,0.00022998,2]
[311318749,1705061467523,-540.90072547,0.00022998,2]
[311318750,1705061467535,-2585.47084952,0.00022998,4]
[311318751,1705061467545,-500.0,0.00022998,2]
[311318752,1705061467554,-337.14459548,0.00022998,2]
[311318753,1705061467564,-384.88034984,0.00022998,2]
[311318754,1705061467573,-500.0,0.00022998,2]
[311318755,1705061467583,-500.0,0.00022998,2]
[311318756,1705061467593,-155.0,0.00022999,2]
[311318757,1705061467602,-278.75448039,0.00022999,2]
[311318758,1705061467611,-512715.82464027,0.00022999,2]
[311318759,1705061467620,-500.0,0.00022999,2]
[311318760,1705061467629,-500.0,0.00022999,2]
[311318761,1705061467639,-500.0,0.00022999,2]
[311318762,1705061467648,-500.0,0.00022999,2]
[311318763,1705061467657,-500.0,0.00022999,2]
[311318764,1705061467666,-500.0,0.00022999,2]
[311318765,1705061467676,-205.89563197,0.00022999,2]
[311318766,1705061467685,-150.0,0.00022999,2]
[311318767,1705061467695,-150.0,0.00022999,2]
[311318768,1705061467705,-150.0,0.00022999,2]
[311318769,1705061467715,-150.0,0.00022999,2]
[311318770,1705061467725,-150.0,0.00022999,2]
[311318771,1705061467734,-150.0,0.00022999,2]
[311318772,1705061467744,-150.0,0.00022999,2]
[311318773,1705061467754,-150.0,0.00022999,2]
[311318774,1705061467763,-150.0,0.00022999,2]
[311318775,1705061467773,-150.0,0.00022999,2]
[311318776,1705061467785,-150.0,0.00022999,2]
[311318777,1705061467794,-150.0,0.00022999,2]
[311318778,1705061467804,-150.0,0.00022999,2]
[311318779,1705061467814,-150.0,0.00022999,2]
[311318780,1705061467823,-6642280.99780141,0.00023,2]
[311318781,1705061470064,-155.0,0.00022506,2]
[311318782,1705061470075,-500.0,0.00022595,2]
[311318783,1705061470085,-500.0,0.00022595,2]
[311318784,1705061470095,-500.0,0.00022595,2]
[311318785,1705061470105,-500.0,0.00022595,2]
[311318786,1705061470115,-500.0,0.00022869,2]
[311318787,1705061470125,-99700.68051851,0.00023,2]
[311318788,1705061470137,-143349.98793607,0.00023,2]
[311318789,1705061470162,-6339.2475197,0.00023,2]
[311318790,1705061470604,-500.0,0.00022595,2]
[311318791,1705061470614,-53432.3944412,0.00023,2]
[311318792,1705061470625,-432.00617712,0.00023,2]
[311318793,1705061470636,-2434.93162961,0.00023,2]
[311318794,1705061470653,-2832.05766173,0.00023,2]
[311318795,1705061470664,-3863.42251599,0.00023,2]
[311318796,1705061470675,-1090.25048855,0.00023,2]
[311318797,1705061470686,-7967.13658599,0.00023,2]
[311318798,1705061470697,-208487.00082505,0.00023,2]
[311318799,1705061470708,-6287.90270916,0.00023,2]
[311318800,1705061470719,-1923.42125106,0.00023,2]
[311318801,1705061470731,-650.1100006,0.00023,2]
[311318802,1705061470746,-26032.04241783,0.00023,2]
[311318803,1705061470765,-6671.12017408,0.00023,2]
[311318804,1705061470776,-1094.93749655,0.00023,2]
[311318805,1705061470789,-1228.53770147,0.00023,2]
[311318806,1705061470855,-542.7982186,0.00023,2]
[311318807,1705061470870,-446.26704081,0.00023,2]
[311318808,1705061471670,-500.0,0.00022595,2]
[311318809,1705061471679,-403.32664576,0.00022595,2]
[311318810,1705061471690,-96.67335424,0.00022595,2]
[311318811,1705061471700,-2193.78767863,0.00023,2]
[311318812,1705061471711,-8691.75106017,0.00023,2]
[311318813,1705061471722,-7792.58086538,0.00023,2]
[311318814,1705061471734,-714.8698506,0.00023,2]
[311318815,1705061471805,-19960.96197558,0.00023,2]
[311318816,1705061471850,-773.56478229,0.00023,2]
[311318817,1705061471878,-2529.64384675,0.00023,2]
[311318818,1705061471889,-2882.23338395,0.00023,2]
[311318819,1705061472695,155.0,0.00022367,2]
[311318820,1705061476729,158.37493059,0.00022496,2]
[311318821,1705061477641,1114.05478471,0.00022413,2]
[311318823,1705061482396,245000.0,0.00022495,2]
[311318826,1705061486487,427.2,0.00021975,2]
[311318827,1705061497991,618.42,0.00021894,2]
[311318828,1705061508850,250.0,0.00022495,2]
[311318829,1705061509280,446.2755679,0.00020347,2]
[311318830,1705061515116,5000.0,0.00022495,2]
[311318832,1705061529011,354.14107881,0.00021719,2]
[311318833,1705061530224,211.79,0.00021755,2]
[311318834,1705061531375,211.79,0.0002187,2]
[311318835,1705061531568,211.79,0.00021984,2]
[311318836,1705061531669,211.79,0.00022099,2]
[311318837,1705061532205,211.79,0.00022213,2]
[311318838,1705061532433,211.79,0.00022328,2]
[311318839,1705061532643,211.79,0.00022442,2]
[311318840,1705061533773,151.95541755,0.0002233,2]
[311318842,1705061604994,165.97,0.00021693,2]
[311318843,1705061617905,369.26,0.00019769,2]
[311318844,1705061618215,369.26,0.00022033,2]
[311318845,1705061633297,162.03,0.00021893,2]
[311318846,1705061633534,162.03,0.00022268,2]
[311318847,1705061636997,435.9767895,0.00022494,2]
[311318848,1705061730783,250.0,0.00021656,2]
[311318849,1705061747586,1000.0,0.00022495,2]
[311318851,1705061752243,159.55,0.0002166,2]
[311318852,1705061759658,290.651193,0.00022494,2]
[311318855,1705061766193,22475.07,0.00021648,2]
[311318856,1705061784398,153.49,0.00021795,2]
[311318857,1705061784496,153.49,0.00021957,2]
[311318858,1705061784606,153.49,0.00022119,2]
[311318859,1705061785129,153.49,0.00022282,2]
[311318860,1705061785180,153.49,0.00022444,2]
[311318861,1705061790477,295.15408793,0.00022281,2]
[311318862,1705061843075,748.3447769,0.00022495,2]
[311318863,1705061875520,200.0,0.00021648,2]
[311318864,1705061875751,193.767462,0.00022494,2]